Cogmind - Beta 16.1 @@@ ROGUE MODE // 2026.06.22 @ 22:16:50 Player: Lolterzard Result: Destroyed by as-18225 with Assembled Rifle Performance ------------- Evolutions (0) 0 Regions Visited (2) 400 Robots Destroyed (19) 95 Value Destroyed (280) 280 Prototype IDs (0) 0 Alien Tech Used (0) 0 Bonus (0) 0 TOTAL SCORE: 775 Bonus ------- None Cogmind --------- Core Integrity 0/250 Matter 290/300 Energy 80/100 System Corruption 0% Temperature Cool (0) Movement Core (1400) Ox27 Location -10/Mines Parts ------- > --- POWER (1) -------- (None) > --- PROPULSION (2) --- (None) > --- UTILITY (2) ------ Huge Storage Unit > --- WEAPON (2) ------- Grenade Launcher > --- INVENTORY (25) --- Ion Engine Light Ion Engine Light Ion Engine Light Treads Light Treads Wheel Wheel Wheel Heat Sink Small Storage Unit High-capacity Matter Pod (200) Compact Matter Pod (150) Propulsion Shielding Tractor Beam Datajack Peak State ------------ > --- POWER ------------ Light Nuclear Core > --- PROPULSION ------- Wheel Wheel > --- UTILITY ---------- Huge Storage Unit Seismic Detector > --- WEAPON ----------- Light Assault Rifle Light Assault Rifle > --- INVENTORY -------- Ion Engine Light Ion Engine Light Ion Engine Light Treads Light Treads Wheel Wheel Wheel Wheel Heat Sink Small Storage Unit High-capacity Matter Pod Compact Matter Pod Propulsion Shielding Tractor Beam Light Cannon Grenade Launcher Datajack [Rating: 11] Favorites ----------- Power Light Ion Engine Engine Light Ion Engine Power Core Light Nuclear Core Propulsion Wheel Treads Light Treads Wheel Wheel Utility Seismic Detector Device Seismic Detector Storage Huge Storage Unit Weapon Light Assault Rifle Ballistic Gun Light Assault Rifle Ballistic Cannon Light Cannon Build | -11 -10 -10 ------- Run | Yrd Mat Min Slots Evolved . | . . . Power . | . . . Propulsion . | . . . Utility . | . . . Weapon . | . . . Parts Attached 18 | 7 8 3 Power 3 | 1 2 . Engine 2 | 1 1 . Core 1 | . 1 . Reactor . | . . . Propulsion 7 | 2 4 1 Treads 2 | 2 . . Leg . | . . . Wheel 5 | . 4 1 Hover . | . . . Flight . | . . . Utility 3 | 2 1 . Device 1 | 1 . . Storage 2 | 1 1 . Processor . | . . . Hackware . | . . . Protection . | . . . Artifact . | . . . Weapon 5 | 2 1 2 Energy Gun . | . . . Energy Cannon . | . . . Ballistic Gun 3 | 2 1 . Ballistic Cannon 1 | . . 1 Launcher 1 | . . 1 Special Weapon . | . . . Impact Weapon . | . . . Slashing Weapon . | . . . Piercing Weapon . | . . . Special Melee Weapon . | . . . Unidentified Prototypes . | . . . Parts Lost 11 | . 4 7 Power 2 | . 1 1 Propulsion 5 | . 2 3 Utility 1 | . . 1 Weapon 3 | . 1 2 Highest Loss Streak 7 | . 2 7 To Critical Strikes . | . . . Average Backups 11 | 3 11 17 Power 1 | . 1 3 Propulsion 3 | 1 3 5 Utility 3 | . 3 5 Weapon 1 | . 1 1 Tool/Special . | . . . Unused Backups 13 | . 2 11 Power 2 | . . 2 Propulsion 4 | . 1 3 Utility 5 | . . 5 Weapon 1 | . 1 . Tool/Special 1 | . . 1 Average Slot Usage (%) 97 | . 98 94 Engine 9 | . 11 . Core 4 | . 1 13 Treads 3 | . 4 . Wheel 23 | . 23 25 Device 13 | . 14 12 Storage 14 | . 14 14 Ballistic Gun 26 | . 27 24 Peak Build Rating 11 | 7 10 11 Average Rating 7 | 5 7 9 On Entrance 5 | . 7 10 Avg Prop Armor Cover (%) 22 | 22 . . Naked Turns . | . . . Heaviest Build 90 | 12 89 90 Greatest Support 40 | 40 40 20 Greatest Overweight (x) 8 | 3 8 8 Average Overweight (x) 2 | . 2 4 Largest Inventory Capacity 25 | 8 25 25 Average Capacity 21 | 7 22 25 Most Carried 18 | 5 17 18 Average Carried 11 | 3 11 17 Final Capacity 25 | 8 25 25 Final Carried 16 | 5 16 15 Class Distribution -------------------- 76% | Mutant 23% | Scavenger-Mutant Dominant Class ---------------- Mutant | -10/Materials Scavenger-Mutant | -10/Mines Resources | -11 -10 -10 ----------- Run | Yrd Mat Min Matter Collected 581 | 290 259 32 Remotely . | . . . Salvage Created 566 | 102 464 . Parts 43 | 11 32 . Haulers Intercepted 1 | . 1 . Recyclers Shooed 2 | . 2 . Parts Field Recycled . | . . . Retrieved Matter . | . . . Parts Self-Destructed . | . . . Prevented . | . . . Parts Restored . | . . . Kills | -11 -10 -10 ------- Run | Yrd Mat Min Combat Hostiles Destroyed 8 | . 8 . Guns 8 | . 8 . Classes Destroyed 8 | 2 6 . Worker 4 | . 4 . Builder 1 | . 1 . Tunneler 3 | 2 1 . Hauler 1 | . 1 . Recycler 1 | 1 . . Watcher 1 | . 1 . Swarmer 3 | . 3 . Grunt 5 | . 5 . Best Kill Streak 5 | 3 5 . Combat Bots Only 5 | . 5 . Max Kills in Single Turn 2 | 1 2 . Gunslinging 1 | . 1 . Exploded . | . . . Melee . | . . . Uniques/NPCs Destroyed . | . . . Combat | -11 -10 -10 -------- Run | Yrd Mat Min Hostile Shots Fired 68 | . 34 34 Missed 20 | . 10 10 Hits 48 | . 24 24 Melee 2 | . . 2 Projectile 46 | . 24 22 AOE 8 | . . 8 Damage Taken 1094 | . 489 605 Core 261 | . 87 174 Absorbed by Shields . | . . . Core Remaining (%) 100 | 100 . . Volleys Fired 74 | 6 68 . Largest 2 | 2 2 . Hottest 40 | 40 40 . Shots Fired 144 | 12 132 . Gun 144 | 12 132 . Cannon . | . . . Launcher . | . . . Special . | . . . Kinetic 144 | 12 132 . Thermal . | . . . Explosive . | . . . Electromagnetic . | . . . Robot Hit Streak 10 | 2 10 . Robot Miss Streak 4 | 3 4 . Penetration Max . | . . . Secondary Targets 1 | . 1 . Max Gunslinging Chain 1 | . 1 . Shots Hit Robots 88 | 6 82 . Core Hits 38 | 4 34 . Critical Kills . | . . . Critical Parts Destroyed . | . . . Critical Strikes . | . . . Melee Attacks . | . . . Impact . | . . . Slashing . | . . . Piercing . | . . . Sneak Attacks . | . . . Combat Hostiles . | . . . Follow-up Attacks . | . . . Damage Inflicted 926 | 74 817 35 Guns 891 | 74 817 . Cannons . | . . . Explosions . | . . . Melee . | . . . Ramming 35 | . . 35 Kinetic 891 | 74 817 . Thermal . | . . . Explosive . | . . . Electromagnetic . | . . . Impact . | . . . Slashing . | . . . Piercing . | . . . Highest Corruption . | . . . Average Corruption . | . . . Corruption Purged . | . . . Corruption Blocked . | . . . Overload Shots . | . . . Overflow Damage . | . . . Projectiles . | . . . Explosions . | . . . Melee . | . . . Knockbacks 1 | . . 1 Impact 1 | . . 1 Kinetic . | . . . Secondary . | . . . Self-Inflicted Damage 17 | . . 17 Shots . | . . . Rammed 4 | . . 4 Targets Rammed 4 | . . 4 Kicked . | . . . Crushed . | . . . Highest Temperature 25 | . 25 . Average Temperature 8 | . 8 . Received Heat Transfer 150 | . 150 . Siege Activations . | . . . Martial Activations . | . . . Shielding Activations . | . . . Robots Disrupted . | . . . Combat Hostiles . | . . . Robots Corrupted . | . . . Combat Hostiles . | . . . Parts Fried . | . . . Impact Corruptions . | . . . Robots Melted . | . . . Combat Hostiles . | . . . Parts Melted . | . . . Heat Transferred . | . . . Parts Sabotaged . | . . . Parts Stolen . | . . . Parts Stripped . | . . . Power Chain Reactions . | . . . Alert | -11 -10 -10 ------- Run | Yrd Mat Min Maximum Alert Level . | . . . Low Security (%) 100 | 100 100 100 Level 1 . | . . . Level 2 . | . . . Level 3 . | . . . Level 4 . | . . . Level 5 . | . . . High Security . | . . . Max Security . | . . . Peak Influence 110 | 5 110 15 Initial 8 | . . 8 Average 20 | . 26 1 Influence Increases 324 | 15 294 15 Destroy 0b10 Robot/C 160 | . 160 . Destroy 0b10 Robot/NC 55 | 15 40 . Destroy Leader 54 | . 54 . Trap Triggered on 0b10 10 | . 10 . Lose Combat Pursuer 45 | . 30 15 Influence Decreases 324 | 15 271 38 Entered New Map 15 | . . 15 Time Decay 265 | 15 242 8 Lost Part 44 | . 29 15 Squads Dispatched 2 | . 2 . Investigation 2 | . 2 . Extermination . | . . . Reinforcement . | . . . Assault . | . . . Garrison . | . . . Intercept . | . . . Searches Triggered . | . . . Construction Impeded . | . . . Haulers Reinforced . | . . . Active Scanning Responses . | . . . Cargo Convoy Interrupts . | . . . Stealth | -11 -10 -10 --------- Run | Yrd Mat Min Distress Signals . | . . . Communications Jammed . | . . . Distress Signals . | . . . Times Spotted 42 | . 19 23 Peak Tracking Total 21 | . 3 21 Tactical Retreats 3 | . 2 1 Traps | -11 -10 -10 ------- Run | Yrd Mat Min Traps Triggered 3 | . 3 . Indirectly . | . . . Trap Hack Attempts . | . . . Triggered . | . . . Disarmed . | . . . Reprogrammed 1 | . 1 . Reused 1 | . 1 . Traps Extracted . | . . . Installed . | . . . Triggered 1 | . 1 . Machines | -11 -10 -10 ---------- Run | Yrd Mat Min Machines Disabled . | . . . Max in Single Turn . | . . . Machines Repaired . | . . . Machines Dismantled . | . . . Machines Sabotaged . | . . . Overloaded Fab Kills . | . . . Hacking | -11 -10 -10 --------- Run | Yrd Mat Min Machines Accessed 3 | . 3 . Terminals 3 | . 3 . Fabricators . | . . . Repair Stations . | . . . Recycling Units . | . . . Scanalyzers . | . . . Garrison Access . | . . . Total Hacks 8 | . 8 . Successful 2 | . 2 . Failed 6 | . 6 . Catastrophic . | . . . Database Lockouts . | . . . Manual . | . . . Terminals 8 | . 8 . Fabricators . | . . . Repair Stations . | . . . Recycling Units . | . . . Scanalyzers . | . . . Garrison Access . | . . . Terminal Hacks 2 | . 2 . Reprogram Traps 1 | . 1 . Hauler Manifests 1 | . 1 . Fabricator Hacks . | . . . Repair Station Hacks . | . . . Recycling Unit Hacks . | . . . Scanalyzer . | . . . Garrison Access Hacks . | . . . Unauthorized Hacks . | . . . Terminals . | . . . Fabricators . | . . . Repair Stations . | . . . Recycling Units . | . . . Scanalyzers . | . . . Garrison Access . | . . . Data Cores Recovered . | . . . Used . | . . . Hacking Detections 2 | . 2 . Full Trace Events 1 | . 1 . Feedback Events . | . . . Feedback Blocked . | . . . Robot Schematics Acquired . | . . . Robots Built . | . . . Authchips . | . . . Time . | . . . Total Robot Build Rating . | . . . Part Schematics Acquired . | . . . Parts Built . | . . . Authchips . | . . . Time . | . . . Total Part Build Rating . | . . . Part Studies Acquired . | . . . Parts Repaired . | . . . Time . | . . . Parts Recycled . | . . . Recycled Matter . | . . . Retrieved Matter . | . . . Retrieved Components . | . . . Parts Scanalyzed . | . . . Part Schematics Acquired . | . . . Parts Damaged . | . . . Bothacking | -11 -10 -10 ------------ Run | Yrd Mat Min Used RIF Installer . | . . . Robots Hacked . | . . . Non-combat . | . . . Combat . | . . . Robot Hacks Applied . | . . . Relay Couplers Released . | . . . Fabnet Peak Effective % . | . . . Robots Rewired . | . . . Allies Hacked . | . . . Hacks Repelled . | . . . Allies | -11 -10 -10 -------- Run | Yrd Mat Min Total Allies . | . . . Largest Group . | . . . Highest-Rated Group . | . . . Highest-Rated Ally . | . . . Total Orders . | . . . Ally Attacks . | . . . Total Damage . | . . . Kills . | . . . Allies Corrupted . | . . . Allies Melted . | . . . Intel | -11 -10 -10 ------- Run | Yrd Mat Min Active Infowar (turns) 1040 | 23 846 171 Seismic 1040 | 23 846 171 Robot Analysis Total . | . . . Derelict Logs Recovered 1 | . . 1 Drone Launches . | . . . Drone Recoveries . | . . . Exploration | -11 -10 -10 ------------- Run | Yrd Mat Min Turns Passed 1144 | 108 846 190 Spaces Moved 607 | 53 436 118 Core 23 | 23 . . Treads 79 | 30 49 . Legs . | . . . Wheels 505 | . 387 118 Hover . | . . . Flight . | . . . Fastest Speed 50 | 50 135 140 Average Speed 141 | 145 141 141 Slowest Speed 320 | 200 320 200 Overloaded Moves . | . . . Propulsion Burnouts . | . . . Robots Hopped . | . . . Potential Cave-ins . | . . . Cave-ins Triggered . | . . . Exploration Rate (%) 31 | 5 59 31 Regions Visited 2 Branch Regions 1 Pre-discovered Areas 1 | . . 1 Known Exits Taken . | . . . Unknown Exits Taken 2 | 1 1 . Scrap Searched 1 | . . 1 Spaces Dug . | . . . Terrain Destroyed . | . . . Melee . | . . . Projectile . | . . . AOE . | . . . Terrain Rammed . | . . . Walls Destroyed . | . . . Machines Disabled . | . . . Actions | -11 -10 -10 --------- Run | Yrd Mat Min Total 749 | 70 551 128 Wait 24 | . 24 . Move 605 | 52 435 118 Hop . | . . . Pick Up 21 | 5 14 2 Fast Attach 8 | 7 1 . Attach 6 | . 3 3 Detach . | . . . Swap 4 | . 4 . Drop 3 | . 2 1 Fire 74 | 6 68 . Melee . | . . . Ram 4 | . . 4 Kick . | . . . Crush . | . . . Escape Stasis . | . . . Rewire . | . . . Trap . | . . . Miscellaneous . | . . . Route ------- -11/Scrapyard -10/Materials (discovered 3 exits: [*Mat] / [*Min x2]) -10/Mines (discovered 2 exits: [*Mat x2]) History --------- Turn | Location | Event 7 | -11/Scrapyard | Discovered new exit (range 16) 109 | -11/Scrapyard | Entered Materials 308 | -10/Materials | Build established: Mutant 426 | -10/Materials | Discovered new exit (range 12) 436 | -10/Materials | Discovered new exit (range 16) 639 | -10/Materials | Discovered new exit (range 16) 955 | -10/Materials | Entered Mines 994 | -10/Mines | Discovered new exit (range 13) 1055 | -10/Mines | Learned location of Zion (-7) 1061 | -10/Mines | Discovered new exit (range 5) 1089 | -10/Mines | Assembled infested the area 1127 | -10/Mines | Core integrity fell below 50% 1142 | -10/Mines | Core integrity fell below 20% 1145 | -10/Mines | Destroyed by as-18225 with Assembled Rifle Last Messages --------------- 01125_ as-79896 destroyed. 01126_ D-53 Grenadier destroyed. 01126_ Seismic Detector destroyed. 01126_ Wheel destroyed. 01128_ The unstable cave ceiling collapses. 01128_ 2 Matter crushed. 01128_ as-69740 destroyed. 01128_ as-25781 destroyed. 01128_ as-34258 destroyed. 01129_ Slammed into D-53 Grenadier. 01129_ D-53 Grenadier knocked back. 01130_ The unstable cave ceiling collapses. 01130_ Lgt. Nuclear Core destroyed. 01130_ Lgt. Cannon destroyed. 01130_ Wheel destroyed. 01130_ Lgt. Assault Rifle destroyed. 01131_ Slammed into D-53 Grenadier. 01132_ The unstable cave ceiling collapses. 01136_ D-53 Grenadier destroyed. 01139_ The unstable cave ceiling collapses. Map ----- +----------------------------------------------------+ | ????????????????????????????????????????????? | | ????????????????????????????????????????????? | | ????????????????????????????????????????????? | | ????????????????????????????????????????????? | | ????????????????????????????????????????????? | | ?????????????# ?????????????????????????????? | | ????????????# ?????????????????????????????? | | ???????????? ?????????????????????????????? | | ???????????? ?????????????????????????????? | | ??????????? ?????????????????????????????? | | ??????????# ?????????????????????????????? | | ?????????## ?????????????????????????????? | | ?????????# "?????????????????????????????? | | ?????????#% #????????????????????????????? | | ?????????# #??????????????????????????? | | ?????????# #?????????????????????????? | | ?????????# % # ####?????????????????????? | | ????????## a # ##????????????????????? | | ????????# a ##???????????????????? | | ????????## a aa### #???????????????????? | | ????????# a #???????????????????? | | ?????????# # # ##??????????????????? | | ??????????? # ?????????????????? | | ???????????### #? #????????????????? | | ?????????????### # a ## #????????????????? | | ???????????????# @ # #????????????????? | | ???????????????## % ### #????????????????? | | ????????????????# #?? #????????????????? | | ????????????????#### ###?? #????????????????? | | ???????????????????# #???# #????????????????? | | ???????????????????# #???# #????????????????? | | ???????????????????# #??## ######???????????? | | ???????????????????# #??# #?#####?????? | | ?????????????####### #### """ ### ##????# | | ??##########?# % """ ## ###??# | | ??# #?# ########## """ ## ##?# | | ??# < #?# #????????# ## #?# | | ??# #?# #????????# """ #?# #?# | | ??# """ ###%#????????# """ #?# < ### | | ??# """ ! #????????# """ ### ## | | ??# """ #####????????# | | ??# #????????????# # | | ??# #????????????# ####### # | | ??##########????????????#########?????## ### | | ???????????????????????????????????????####?? | | ????????????????????????????????????????????? | | | | | | | | | +----------------------------------------------------+ Best States ------------- Heat Dissipation 25 Energy Generation 14 Energy Capacity 250 Matter Stores 300 Matter Capacity 300 Sight Range 16 Terrain Scan Density 10 Evasion (%) 50 Recoil Reduction 2 Item Schematics ----------------- None Robot Schematics ------------------ None Fabricated ------------ Nothing Repaired ---------- Nothing Studied --------- None Alien Tech Used ----------------- None Achievements -------------- None Challenges ------------ None Game ------ Seed NavigationTeslaArray Manual? 0 Play Time 00:07:14 Cumulative 45.4 hours Start 2026.06.22 @ 22:10:50 End 2026.06.22 @ 22:16:50 Sessions 1 Manual Loads 0 Difficulty Rogue Special Mode None Game No. 87 Rogue 87 Adventurer 0 Explorer 0 Win Type - Total 0 Types 0/0/0/0/0/0/0/0/0/0 Lore% 23 Gallery% 24 Achievement% 21 Wizard Run 0 Options --------- Layout 0 ASCII 0 Keyboard 0 Movement Mouse Keybinds 0 Fullscreen 2 Font 24/Smallcaps Map View 76x50 Zoom Use 0% Tactical HUD 1 Map Filters NONE Filters NONE Steam 1 RUN: dbe69d98-e42c-4559-9641-271608f1705e